Cogmind - Beta 16 @@@ ROGUE MODE // 2025.10.25 @ 13:50:46 Player: Zish Result: Destroyed by Y-45 Defender with Heavy Assault Rifle Performance ------------- Evolutions (1) 500 Regions Visited (2) 400 Robots Destroyed (16) 80 Value Destroyed (427) 427 Prototype IDs (0) 0 Alien Tech Used (0) 0 Bonus (0) 0 TOTAL SCORE: 1407 Bonus ------- None Cogmind --------- Core Integrity 0/400 Matter 64/300 Energy 100/100 System Corruption 0% Temperature Cool (9) Movement Core (50) Location -9/Materials Parts ------- > --- POWER (2) -------- (None) > --- PROPULSION (2) --- (None) > --- UTILITY (3) ------ (None) > --- WEAPON (2) ------- (None) > --- INVENTORY (5) ---- Improved Ion Engine Aluminum Leg VTOL Module Improved Targeting Computer Mini Grenade Launcher Peak State ------------ > --- POWER ------------ Ion Engine Ion Engine > --- PROPULSION ------- Aluminum Leg Aluminum Leg > --- UTILITY ---------- Small Storage Unit Structural Scanner Sensor Array > --- WEAPON ----------- Assault Rifle Rocket Launcher > --- INVENTORY -------- VTOL Module VTOL Module VTOL Module Improved Targeting Computer Light Assault Rifle Rocket Launcher [Rating: 11] Favorites ----------- Power Ion Engine Engine Ion Engine Propulsion Aluminum Leg Leg Aluminum Leg Flight Unit VTOL Module Utility Small Storage Unit Device Sensor Array Storage Small Storage Unit Weapon Assault Rifle Ballistic Gun Assault Rifle Launcher Rocket Launcher Build | -11 -10 -9 ------- Run | Yrd Mat Mat Slots Evolved 2 | . . 2 Power 1 | . . 1 Propulsion . | . . . Utility 1 | . . 1 Weapon . | . . . Parts Attached 14 | 6 2 6 Power 2 | 1 . 1 Engine 2 | 1 . 1 Core . | . . . Reactor . | . . . Propulsion 4 | 2 . 2 Treads . | . . . Leg 2 | 2 . . Wheel . | . . . Hover . | . . . Flight 2 | . . 2 Utility 3 | 1 1 1 Device 2 | . 1 1 Storage 1 | 1 . . Processor . | . . . Hackware . | . . . Protection . | . . . Artifact . | . . . Weapon 5 | 2 1 2 Energy Gun . | . . . Energy Cannon . | . . . Ballistic Gun 3 | 2 . 1 Ballistic Cannon . | . . . Launcher 2 | . 1 1 Special Weapon . | . . . Impact Weapon . | . . . Slashing Weapon . | . . . Piercing Weapon . | . . . Special Melee Weapon . | . . . Unidentified Prototypes . | . . . Parts Lost 10 | . . 10 Power 2 | . . 2 Propulsion 3 | . . 3 Utility 1 | . . 1 Weapon 4 | . . 4 Highest Loss Streak 6 | . . 6 To Critical Strikes . | . . . Average Backups 5 | 1 2 6 Power . | . 1 . Propulsion 2 | . . 3 Utility . | . . . Weapon 1 | . 1 1 Tool/Special . | . . . Unused Backups 5 | . . 5 Power 1 | . . 1 Propulsion 2 | . . 2 Utility 1 | . . 1 Weapon 1 | . . 1 Tool/Special . | . . . Average Slot Usage (%) 90 | . 93 88 Engine 17 | . 14 20 Leg 21 | . 28 18 Flight 1 | . . 2 Device 14 | . 7 18 Storage 11 | . 14 9 Ballistic Gun 15 | . 25 10 Launcher 6 | . 2 9 Peak Build Rating 11 | 6 9 11 Average Rating 8 | 4 6 9 On Entrance 5 | . 6 9 Avg Prop Armor Cover (%) . | . . . Naked Turns 8 | . . 8 Heaviest Build 23 | 13 17 23 Greatest Support 20 | 20 20 20 Greatest Overweight (x) 6 | 1 . 6 Average Overweight (x) . | . . . Largest Inventory Capacity 8 | 8 8 8 Average Capacity 7 | 6 8 7 Most Carried 8 | 4 7 8 Average Carried 5 | 1 2 6 Final Capacity 8 | 8 8 5 Final Carried 7 | 2 7 5 Class Distribution -------------------- 94% | Mutant 5% | Sprinter Dominant Class ---------------- Mutant | -10/Materials Mutant | -9/Materials Resources | -11 -10 -9 ----------- Run | Yrd Mat Mat Matter Collected 346 | 172 46 128 Remotely . | . . . Salvage Created 444 | . 66 378 Parts 24 | . 5 19 Haulers Intercepted . | . . . Recyclers Shooed 1 | . . 1 Parts Field Recycled . | . . . Retrieved Matter . | . . . Parts Self-Destructed . | . . . Prevented . | . . . Parts Restored . | . . . Kills | -11 -10 -9 ------- Run | Yrd Mat Mat Combat Hostiles Destroyed 11 | . 1 10 Melee 1 | . . 1 Guns 3 | . 1 2 AOE 7 | . . 7 Classes Destroyed 6 | . 2 4 Builder 1 | . 1 . Recycler 2 | . . 2 Watcher 2 | . . 2 Swarmer 3 | . . 3 Grunt 5 | . 1 4 Sentry 3 | . . 3 Best Kill Streak 5 | . 2 5 Combat Bots Only 4 | . 1 4 Max Kills in Single Turn 3 | . 2 3 Gunslinging . | . . . Exploded 3 | . . 3 Melee 1 | . . 1 Uniques/NPCs Destroyed . | . . . Combat | -11 -10 -9 -------- Run | Yrd Mat Mat Hostile Shots Fired 111 | . 5 106 Missed 39 | . 2 37 Hits 72 | . 3 69 Projectile 72 | . 3 69 Critical Strikes 3 | . . 3 Damage Taken 1179 | . 122 1057 Core 430 | . 25 405 Absorbed by Shields . | . . . Core Remaining (%) 95 | 100 90 . Volleys Fired 27 | . 4 23 Largest 2 | . 2 2 Hottest 53 | . 53 53 Shots Fired 50 | . 8 42 Gun 27 | . 5 22 Cannon . | . . . Launcher 23 | . 3 20 Special . | . . . Kinetic 27 | . 5 22 Thermal . | . . . Explosive 23 | . 3 20 Electromagnetic . | . . . Robot Hit Streak 14 | . 1 14 Robot Miss Streak 3 | . 3 3 Penetration Max . | . . . Secondary Targets . | . . . Shots Hit Robots 27 | . 3 24 Core Hits 30 | . 3 27 Critical Kills . | . . . Critical Parts Destroyed . | . . . Critical Strikes . | . . . Melee Attacks . | . . . Impact . | . . . Slashing . | . . . Piercing . | . . . Sneak Attacks . | . . . Combat Hostiles . | . . . Follow-up Attacks . | . . . Damage Inflicted 1117 | . 87 1030 Guns 234 | . 38 196 Cannons . | . . . Explosions 841 | . 49 792 Melee . | . . . Ramming 42 | . . 42 Kinetic 234 | . 38 196 Thermal . | . . . Explosive 841 | . 49 792 Electromagnetic . | . . . Impact . | . . . Slashing . | . . . Piercing . | . . . Highest Corruption . | . . . Average Corruption . | . . . Corruption Purged . | . . . Corruption Blocked . | . . . Overload Shots . | . . . Overflow Damage 8 | . . 8 Projectiles . | . . . Explosions 8 | . . 8 Melee . | . . . Knockbacks . | . . . Impact . | . . . Kinetic . | . . . Secondary . | . . . Self-Inflicted Damage 162 | . 46 116 Shots 6 | . 2 4 Rammed 15 | . . 15 Targets Rammed 15 | . . 15 Kicked . | . . . Crushed . | . . . Highest Temperature 34 | . 3 34 Average Temperature 16 | . 3 17 Received Heat Transfer 393 | . 18 375 Siege Activations . | . . . Martial Activations . | . . . Shielding Activations . | . . . Robots Disrupted . | . . . Combat Hostiles . | . . . Robots Corrupted . | . . . Combat Hostiles . | . . . Parts Fried . | . . . Impact Corruptions . | . . . Robots Melted . | . . . Combat Hostiles . | . . . Parts Melted . | . . . Heat Transferred . | . . . Parts Sabotaged . | . . . Parts Stolen . | . . . Parts Stripped . | . . . Power Chain Reactions . | . . . Alert | -11 -10 -9 ------- Run | Yrd Mat Mat Maximum Alert Level . | . . . Low Security (%) 100 | 100 100 100 Level 1 . | . . . Level 2 . | . . . Level 3 . | . . . Level 4 . | . . . Level 5 . | . . . High Security . | . . . Max Security . | . . . Peak Influence 175 | . 37 175 Initial 7 | . . 7 Average 52 | . 4 84 Influence Increases 505 | . 46 459 Destroy 0b10 Robot/C 220 | . 20 200 Destroy 0b10 Robot/NC 25 | . 5 20 Destroy Leader 54 | . . 54 Successful Hack 9 | . 9 . Disable Machine 45 | . . 45 Destroy Structure 107 | . 12 95 Lose Combat Pursuer 45 | . . 45 Influence Decreases 380 | . 29 351 Entered New Map 10 | . . 10 Time Decay 270 | . 29 241 Lost Part 100 | . . 100 Squads Dispatched 1 | . 1 . Investigation 1 | . 1 . Extermination . | . . . Reinforcement . | . . . Assault . | . . . Garrison . | . . . Intercept . | . . . Searches Triggered . | . . . Construction Impeded . | . . . Haulers Reinforced . | . . . Active Scanning Responses . | . . . Cargo Convoy Interrupts . | . . . Stealth | -11 -10 -9 --------- Run | Yrd Mat Mat Distress Signals 2 | . 1 1 Communications Jammed . | . . . Distress Signals . | . . . Times Spotted 23 | . 3 20 Peak Tracking Total 6 | . 4 6 Tactical Retreats 1 | . . 1 Traps | -11 -10 -9 ------- Run | Yrd Mat Mat Traps Triggered 1 | . 1 . Indirectly . | . . . Trap Hack Attempts . | . . . Triggered . | . . . Disarmed . | . . . Reprogrammed . | . . . Reused . | . . . Traps Extracted . | . . . Installed . | . . . Triggered . | . . . Machines | -11 -10 -9 ---------- Run | Yrd Mat Mat Machines Disabled 3 | . . 3 Max in Single Turn 1 | . . 1 Machines Repaired . | . . . Machines Dismantled . | . . . Machines Sabotaged . | . . . Overloaded Fab Kills . | . . . Hacking | -11 -10 -9 --------- Run | Yrd Mat Mat Machines Accessed 5 | . 4 1 Terminals 3 | . 3 . Fabricators . | . . . Repair Stations . | . . . Recycling Units 1 | . 1 . Scanalyzers 1 | . . 1 Garrison Access . | . . . Total Hacks 14 | . 11 3 Successful 7 | . 5 2 Failed 7 | . 6 1 Catastrophic . | . . . Database Lockouts . | . . . Manual . | . . . Terminals 9 | . 9 . Fabricators . | . . . Repair Stations . | . . . Recycling Units 2 | . 2 . Scanalyzers 3 | . . 3 Garrison Access . | . . . Terminal Hacks 3 | . 3 . Locate Traps 1 | . 1 . Dispatch Records 1 | . 1 . Zone Layout 1 | . 1 . Fabricator Hacks . | . . . Repair Station Hacks . | . . . Recycling Unit Hacks 2 | . 2 . Retrieve Components 2 | . 2 . Scanalyzer 2 | . . 2 Retrieve Study 2 | . . 2 Garrison Access Hacks . | . . . Unauthorized Hacks . | . . . Terminals . | . . . Fabricators . | . . . Repair Stations . | . . . Recycling Units . | . . . Scanalyzers . | . . . Garrison Access . | . . . Data Cores Recovered . | . . . Used . | . . . Hacking Detections 5 | . 4 1 Full Trace Events 1 | . 1 . Feedback Events . | . . . Feedback Blocked . | . . . Robot Schematics Acquired . | . . . Robots Built . | . . . Authchips . | . . . Time . | . . . Total Robot Build Rating . | . . . Part Schematics Acquired . | . . . Parts Built . | . . . Authchips . | . . . Time . | . . . Total Part Build Rating . | . . . Part Studies Acquired 2 | . . 2 Parts Repaired . | . . . Time . | . . . Parts Recycled . | . . . Recycled Matter . | . . . Retrieved Matter . | . . . Retrieved Components 1 | . 1 . Parts Scanalyzed . | . . . Part Schematics Acquired . | . . . Parts Damaged . | . . . Bothacking | -11 -10 -9 ------------ Run | Yrd Mat Mat Used RIF Installer . | . . . Robots Hacked . | . . . Non-combat . | . . . Combat . | . . . Robot Hacks Applied . | . . . Relay Couplers Released . | . . . Fabnet Peak Effective % . | . . . Robots Rewired . | . . . Allies Hacked . | . . . Hacks Repelled . | . . . Allies | -11 -10 -9 -------- Run | Yrd Mat Mat Total Allies . | . . . Largest Group . | . . . Highest-Rated Group . | . . . Highest-Rated Ally . | . . . Total Orders . | . . . Ally Attacks . | . . . Total Damage . | . . . Kills . | . . . Allies Corrupted . | . . . Allies Melted . | . . . Intel | -11 -10 -9 ------- Run | Yrd Mat Mat Active Infowar (turns) 637 | . 173 464 Sensors 628 | . 173 455 Structural 463 | . . 463 Robot Analysis Total . | . . . Derelict Logs Recovered . | . . . Drone Launches . | . . . Drone Recoveries . | . . . Exploration | -11 -10 -9 ------------- Run | Yrd Mat Mat Turns Passed 904 | 64 292 548 Spaces Moved 546 | 49 226 271 Core 27 | 17 . 10 Treads . | . . . Legs 456 | 32 226 198 Wheels . | . . . Hover . | . . . Flight 63 | . . 63 Fastest Speed 32 | 50 120 32 Average Speed 135 | 103 120 154 Slowest Speed 350 | 120 120 350 Overloaded Moves . | . . . Propulsion Burnouts . | . . . Robots Hopped 2 | . . 2 Potential Cave-ins . | . . . Cave-ins Triggered . | . . . Exploration Rate (%) 21 | 4 37 23 Regions Visited 2 Branch Regions . Pre-discovered Areas . | . . . Known Exits Taken . | . . . Unknown Exits Taken 2 | 1 1 . Scrap Searched . | . . . Spaces Dug . | . . . Terrain Destroyed 153 | . 19 134 Melee . | . . . Projectile . | . . . AOE 153 | . 19 134 Terrain Rammed . | . . . Walls Destroyed . | . . . Machines Disabled . | . . . Actions | -11 -10 -9 --------- Run | Yrd Mat Mat Total 658 | 62 239 357 Wait 37 | . . 37 Move 540 | 48 225 267 Hop 2 | . . 2 Pick Up 19 | 8 7 4 Fast Attach . | . . . Attach 14 | 6 2 6 Detach . | . . . Swap . | . . . Drop 4 | . 1 3 Fire 27 | . 4 23 Melee . | . . . Ram 15 | . . 15 Kick . | . . . Crush . | . . . Escape Stasis . | . . . Rewire . | . . . Trap . | . . . Miscellaneous . | . . . Route ------- -11/Scrapyard -10/Materials (discovered 2 exits: *Mat / [Min]) -9/Materials History --------- Turn | Location | Event 19 | -11/Scrapyard | Discovered new exit (range 16) 65 | -11/Scrapyard | Entered Materials 159 | -10/Materials | Discovered new exit (range 16) 296 | -10/Materials | Discovered new exit (range 11) 300 | -10/Materials | Build established: Mutant 357 | -10/Materials | Entered another Materials area 357 | -9/Materials | Evolved 2 slots: Power x1, Utility x1 847 | -9/Materials | Lost 6 parts (1p2n1u2w) 878 | -9/Materials | Core integrity fell below 50% 903 | -9/Materials | Core integrity fell below 20% 905 | -9/Materials | Destroyed by Y-45 Defender with Heavy Assault Rifle Last Messages --------------- 00862_ Destabilizing: Short circuit. 00863_ Acquired 9 matter. 00863_ Dropped Broken VTOL Module+. 00877_ VTOL Module+ destroyed. 00877_ Critical hit (Burn: +37). 00879_ U-05 Engineer builds a Wall. 00883_ U-05 Engineer lays Concrete. 00885_ U-05 Engineer builds a Wall. 00887_ M-13 Machinist repairs Y-45 Defender Heat Sink. 00888_ Slammed into Y-45 Defender. 00890_ Destabilizing: System interference. 00890_ Lgt. Assault Rifle temporarily disabled. 00893_ Critical hit (Burn: +37). 00893_ Slammed into Y-45 Defender. 00894_ Ion Engine destroyed. 00894_ Slammed into Y-45 Defender. 00897_ Lgt. Assault Rifle destroyed. 00897_ Slammed into Y-45 Defender. 00904_ Destabilizing: Core damaged (-4). Map ----- +----------------------------------------------------+ | ?????????????### ! ] # ???????????????? | | ?????????????##### ! # ? #????????????? | | ??????????????##### ########## ##???????????? | | ????????????????### ############# ##???????????? | | ????????????????### ??????????? | | ????????????????## ??????????? | | ????????????????## ?????????? | | ????????????????## ?????????? | | ???????????????#### ### ?????????? | | ???????????????####+#### ?????????? | | ???????????????## # ?????????? | | ???????????????## + ############??????????? | | ???????????????## """ # #######???????????????? | | ???????????????## """ # #######???????????????? | | ?????########??## """ # #########"????????????? | | ????############# # #### ####"????????????? | | ????###!!!!############# # = # ????????????? | | ????##! !# # ###### # """= #"????????????? | | ###### # ### # # # """ # ????????????? | | ###### ############ # """ #"????????????? | | #"????????????? | | ! ##????????????? | | ##????????????? | | #########+######+######+#### ##????????????? | | ####### # # Y## "" "" ##????????????? | | ?????## """ # Y@## ""S"" ##????????????? | | ?????## """ # m ## """" ##????????????? | | ?????## """ # """ # ###########????????????? | | ?????## # """ # ###########????????????? | | ?????## # """ # ##?????????????????????? | | ?????################ ##?????????????????????? | | ?????################ ##?????????????????????? | | ???????????????????## ##?????????????????????? | | ???????????????????## ##?????????????????????? | | ???????????????????## ##?????????????????????? | | ???????????????????## ##?????????????????????? | | ???????????????????######+##?????????????????????? | | ???????????????????###### ##?????????????????????? | | ???????????????????????## ##?????????????????????? | | ????????????????######### ###????????????????????? | | ????????????????#########+###????????????????????? | | ????????????????## ##????????????????????? | | ????????????????## ##????????????????????? | | ????????????????## ##????????????????????? | | ????????????????## ##????????????????????? | | ????????????????## ##????????????????????? | | ????????????????## ##????????????????????? | | ????????????????## ##????????????????????? | | ????????########## ##????????????????????? | | ?????##################+#####????????????????????? | +----------------------------------------------------+ Best States ------------- Heat Dissipation 28 Energy Generation 15 Energy Capacity 400 Matter Stores 212 Matter Capacity 300 Sight Range 16 Robot Scan Range 14 Terrain Scan Density 10 Evasion (%) 63 Item Schematics ----------------- None Robot Schematics ------------------ None Fabricated ------------ Nothing Repaired ---------- Nothing Studied --------- VTOL Module | -9/Materials | Hacked Rocket Launcher | -9/Materials | Hacked Alien Tech Used ----------------- None Achievements -------------- None Challenges ------------ None Game ------ Seed SupersonicFieldDatajack Manual? 0 Play Time 00:08:19 Cumulative 15.4 hours Start 2025.10.25 @ 13:43:01 End 2025.10.25 @ 13:50:46 Sessions 1 Manual Loads 0 Difficulty Rogue Special Mode None Game No. 36 Rogue 36 Adventurer 0 Explorer 0 Win Type - Total 0 Types 0/0/0/0/0/0/0/0/0/0 Lore% 9 Gallery% 19 Achievement% 14 Wizard Run 0 Options --------- Layout 1 ASCII 0 Keyboard 0 Movement Arrows Keybinds 0 Fullscreen 1 Font 24/Smallcaps Map View 50x35 Zoom Use 0% Tactical HUD 1 Map Filters NONE Filters NONE Steam 1 RUN: e5e58222-ecd6-401b-9dc0-8fdceadffe79